fUST/lending_fUST_20240131
["ID","MTS","AMOUNT","RATE_DAILY","PERIOD"]
[313021676,1706635832079,-14074.66427717,0.00020501,2]
[313021679,1706635832088,-155.00155002,0.0002054,2]
[313021682,1706635832097,-24900.0,0.00020634,2]
[313021684,1706635832107,-296.73934084,0.00020685,2]
[313021686,1706635832116,-296.73934084,0.00020947,2]
[313021688,1706635832125,-296.73934084,0.00021208,2]
[313021690,1706635832135,-296.73934084,0.0002147,2]
[313021692,1706635832144,-200.0,0.00021525,7]
[313021694,1706635832152,-213.37686941,0.00021669,2]
[313021696,1706635832163,-213.37686941,0.00022936,2]
[313021698,1706635832172,-280.0,0.00023678,7]
[313021700,1706635832182,-213.37686941,0.00024202,2]
[313021702,1706635832191,-213.37686941,0.00025468,2]
[313021704,1706635832200,-1586.35135048,0.00025562,2]
[313021706,1706635832210,-2974.84690822,0.00025563,2]
[313021708,1706635832219,-391.0,0.00026045,7]
[313021710,1706635832228,-213.37686941,0.00026735,2]
[313021712,1706635832237,-155.00155002,0.00027998,2]
[313021714,1706635832246,-201.10139586,0.00028,2]
[313021716,1706635832256,-213.37686941,0.00028001,2]
[313021718,1706635832265,-200.0,0.0002865,15]
[313021720,1706635832274,-348.0,0.0002865,15]
[313021722,1706635832283,-155.02015262,0.00028846,2]
[313021724,1706635832292,-155.23217948,0.00028937,2]
[313021726,1706635832302,-161.19857963,0.00028937,2]
[313021728,1706635832310,-155.02790186,0.00028937,2]
[313021730,1706635832319,-262.62109468,0.00028938,2]
[313021732,1706635832328,-155.0201515,0.00028938,2]
[313021734,1706635832337,-471.27847094,0.00028938,2]
[313021736,1706635832346,-2106.51819104,0.00028938,2]
[313021738,1706635832355,-625.34868555,0.00028938,2]
[313021740,1706635832364,-19879.03131816,0.00028938,2]
[313021742,1706635832373,-7965.79615973,0.00028938,2]
[313021744,1706635832382,-561.47021282,0.00028938,2]
[313021746,1706635832391,-303.25690615,0.00028938,2]
[313021748,1706635832400,-1267.63568277,0.00028938,2]
[313021750,1706635832409,-225.9965034,0.00028938,2]
[313021752,1706635832418,-903.98962863,0.00028939,2]
[313021754,1706635832427,-30676.75101536,0.00028939,2]
[313021756,1706635832436,-16509.35645489,0.0002894,2]
[313021758,1706635832448,-6369.13718193,0.0002894,2]
[313021892,1706635838051,-20770.26046798,0.0002894,2]
[313021893,1706635838061,-155.69026299,0.00028991,2]
[313021894,1706635838070,-1856.25502519,0.00028991,2]
[313021895,1706635838079,-155.17453603,0.00028991,2]
[313021896,1706635838087,-303.54991062,0.00028991,2]
[313021897,1706635838096,-262.12037239,0.00028991,2]
[313021898,1706635838106,-300.0,0.00029,2]
[313021899,1706635838115,-213.37686941,0.00029267,2]
[313021900,1706635838124,-209.034731,0.00029301,2]
[313021901,1706635838133,-199.5795051,0.00029315,2]
[313021902,1706635838142,-199.5795051,0.00029315,2]
[313021903,1706635838152,-434.2027584,0.00029315,2]
[313021904,1706635838167,-151.0,0.00029665,7]
[313021905,1706635838182,-155.23328726,0.0002971,3]
[313021906,1706635838192,-155.70723413,0.00029996,2]
[313021907,1706635838202,-1951.83365289,0.00029996,2]
[313021909,1706635838212,-155.11338698,0.00029996,2]
[313021911,1706635838221,-155.16797242,0.00029996,2]
[313021913,1706635838231,-309.72125088,0.00029996,2]
[313021914,1706635838240,-155.12462204,0.00029996,2]
[313021915,1706635838250,-230.4636117,0.00029996,2]
[313021916,1706635838260,-5214.02314025,0.00029996,2]
[313021917,1706635838270,-156.27626814,0.00029996,2]
[313021918,1706635838280,-200.30997645,0.00029996,2]
[313021919,1706635838290,-155.00155002,0.00029996,2]
[313021920,1706635838300,-309.9690031,0.00029996,2]
[313021921,1706635838309,-1485.05811791,0.00029996,2]
[313021922,1706635838318,-155.01085076,0.00029996,2]
[313021923,1706635838328,-309.9690031,0.00029996,2]
[313021924,1706635838337,-242.39341789,0.00029996,2]
[313021925,1706635838346,-9039.40603719,0.00029996,2]
[313021926,1706635838356,-309.94424177,0.00029997,2]
[313021927,1706635838365,-155.13836492,0.00029997,2]
[313021928,1706635838376,-155.02170276,0.00029997,2]
[313021929,1706635838385,-309.72125088,0.00029997,2]
[313021930,1706635838395,-3340.9928411,0.0003,2]
[313021931,1706635838405,-146423.90831105,0.0003,4]
[313021932,1706635838414,-2374.95091436,0.0003,2]
[313021933,1706635838424,-244.61431091,0.0003,4]
[313021934,1706635838433,-166.31773331,0.0003,10]
[313021935,1706635838442,-308.81555806,0.0003,4]
[313021936,1706635838451,-650.24391054,0.0003,14]
[313021937,1706635838461,-689.49476826,0.0003,4]
[313021938,1706635838470,-910.12089925,0.0003,7]
[313021939,1706635838480,-237.0,0.0003,2]
[313021940,1706635838490,-5000.0,0.00030064,10]
[313021941,1706635838500,-723.596918,0.000301,11]
[313021942,1706635838510,-500.0,0.0003012,11]
[313021943,1706635838519,-157.894736,0.00030137,2]
[313021944,1706635838529,-500.0,0.0003014,11]
[313021945,1706635838539,-500.0,0.0003016,11]
[313021946,1706635838548,-500.0,0.0003018,11]
[313021947,1706635838558,-500.0,0.000302,11]
[313021948,1706635838567,-151.0,0.00030271,4]
[313021949,1706635838577,-212.48906487,0.00030299,7]
[313021950,1706635838586,-802.655226,0.00030299,7]
[313021951,1706635838595,-213.37686941,0.00030534,2]
[313021952,1706635838605,-21705.86650889,0.00030686,4]
[313021953,1706635838614,-157.894736,0.00030746,2]
[313021954,1706635838624,-151.0,0.00030888,2]
[313021955,1706635838633,-155.01085076,0.00030996,4]
[313021956,1706635838642,-199.40706309,0.00030996,4]
[313021957,1706635838652,-155.01085076,0.00030996,4]
[313021958,1706635838661,-527.20617205,0.00030996,4]
[313021959,1706635838671,-688.68606905,0.00030996,4]
[313021960,1706635838680,-155.01085076,0.00030996,4]
[313021961,1706635838690,-19720.32843806,0.00030996,4]
[313021962,1706635838699,-167.17885377,0.00030996,4]
[313021963,1706635838708,-261.37401822,0.00030996,4]
[313021964,1706635838718,-260.59518574,0.00030996,4]
[313021965,1706635838727,-175.37542985,0.00030996,4]
[313021966,1706635838736,-10977.16493473,0.00030996,2]
[313021967,1706635838746,-3749.22764229,0.00030996,4]
[313021968,1706635838756,-37000.01230553,0.00030997,4]
[313021969,1706635838765,-522.60932661,0.00030998,4]
[313021970,1706635838775,-1678.29515222,0.00030998,4]
[313021971,1706635838784,-1969.0,0.00031,4]
[313021972,1706635838794,-161.43393847,0.00031,4]
[313021973,1706635838803,-982.82266304,0.00031,4]
[313021974,1706635838815,-455.09948544,0.00031,4]
[313021975,1706635838824,-213.42126249,0.00031,4]
[313021976,1706635838833,-1200.0,0.00031,4]
[313021977,1706635838843,-376.35893675,0.00031,4]
[313021978,1706635838853,-545.581274,0.00031,7]
[313021979,1706635838862,-3519.18054344,0.00031,4]
[313021980,1706635838872,-177.25672105,0.00031,4]
[313021981,1706635838881,-300.0,0.00031,4]
[313021982,1706635838890,-172.32028985,0.00031,4]
[313021983,1706635838900,-1027.91083157,0.00031,2]
[313021984,1706635838910,-155.80457916,0.00031,4]
[313021985,1706635838919,-500.0,0.00031,2]
[313021986,1706635838929,-1500.0,0.00031,2]
[313021987,1706635838938,-157.894736,0.00031355,2]
[313021988,1706635838947,-151.569421,0.00031471,2]
[313021989,1706635838956,-151.725805,0.00031471,2]
[313021990,1706635838965,-191.898186,0.00031471,2]
[313021991,1706635838974,-200.0,0.00031515,15]
[313021992,1706635838983,-200.0,0.00031515,15]
[313021993,1706635838993,-368.0,0.00031515,15]
[313021994,1706635839002,-151.0,0.00031659,2]
[313021995,1706635839012,-1500.0,0.0003166,3]
[313021996,1706635839021,-213.37686941,0.000318,2]
[313021997,1706635839031,-113939.79010695,0.000319,2]
[313021998,1706635839041,-9160.16469192,0.000319,3]
[313021999,1706635839050,-157.894736,0.00031963,2]
[313022000,1706635839059,-624.05647459,0.00031992,2]
[313022001,1706635839068,-151.725805,0.00031995,2]
[313022002,1706635839077,-1386.67487204,0.00031999,3]
[313022003,1706635839086,-155.01860223,0.00032,4]
[313022004,1706635839096,-5000.0,0.00032,7]
[313022005,1706635839106,-182755.31875098,0.00032,15]
[313022006,1706635839119,-1778.04624594,0.00032,15]
[313022015,1706635841177,-963.1058,0.00032,15]
[313022033,1706635843011,-472.39938785,0.00032,15]
[313022034,1706635843022,-2243.53042003,0.00032,15]
[313022035,1706635843068,-4749.80749534,0.00032,15]
[313022058,1706635846320,-980.8240955,0.00031999,4]
[313022059,1706635846377,-1150.55007981,0.00031999,4]
[313022061,1706635846386,-277.0,0.00032,2]
[313022063,1706635846396,-10810.30570793,0.00032,15]
[313022097,1706636942717,209.034732,0.00019543,2]
[313022146,1706637032205,-1586.35135048,0.00020501,2]
[313022147,1706637032215,-310.02170152,0.00020501,2]
[313022148,1706637032227,-3750.87,0.00020502,3]
[313022149,1706637032239,-175.43157375,0.00020509,2]
[313022150,1706637032249,-155.01395126,0.0002051,2]
[313022151,1706637032259,-15639.60324417,0.0002051,2]
[313022152,1706637032269,-37009.8984698,0.00020511,2]
[313022154,1706637032280,-20925.73501298,0.00020512,2]
[313022155,1706637032290,-260.67799851,0.00020513,2]
[313022156,1706637032301,-3750.33849076,0.00020513,2]
[313022157,1706637032312,-261.45798965,0.00020513,2]
[313022158,1706637032321,-522.79204852,0.00020513,2]
[313022159,1706637032331,-199.46539492,0.00020514,2]
[313022162,1706637032436,-7970.65505241,0.00020514,2]
[313022163,1706637032446,-167.24069426,0.00020514,2]
[313022164,1706637032457,-2106.42688241,0.00020514,3]
[313022177,1706637038277,-21712.69652796,0.00020501,2]
[313022178,1706637038286,-155.00155002,0.00020517,2]
[313022180,1706637038295,-155.00155002,0.00020517,2]
[313022182,1706637038304,-2106.51819104,0.00020522,2]
[313022183,1706637038314,-24900.0,0.00020605,2]
[313022185,1706637038323,-500.0,0.00020822,2]
[313022187,1706637038332,-500.0,0.00020822,2]
[313022188,1706637038341,-425.31454102,0.00020822,2]
[313022191,1706637038351,-500.0,0.00020822,2]
[313022194,1706637038361,-337.70440343,0.00020822,2]
[313022195,1706637038370,-500.0,0.00020822,2]
[313022196,1706637038379,-500.0,0.00020822,2]
[313022197,1706637038388,-500.0,0.00020822,2]
[313022198,1706637038398,-500.0,0.00020822,2]
[313022199,1706637038408,-500.0,0.00020822,2]
[313022200,1706637038417,-500.0,0.00020822,2]
[313022201,1706637038428,-500.0,0.00020822,2]
[313022202,1706637038439,-332.31986532,0.00020822,2]
[313022203,1706637038448,-500.0,0.00020822,2]
[313022204,1706637038458,-500.0,0.00020822,2]
[313022205,1706637038467,-156.35796755,0.00020822,2]
[313022206,1706637038476,-634.03071431,0.00020822,2]
[313022207,1706637038485,-500.0,0.00020822,2]
[313022208,1706637038495,-500.0,0.00020822,2]
[313022209,1706637038504,-197.84848958,0.00020822,2]
[313022210,1706637038513,-500.0,0.00020822,2]
[313022211,1706637038522,-500.0,0.00020822,2]
[313022212,1706637038532,-500.0,0.00020822,2]
[313022213,1706637038542,-500.0,0.00020822,2]
[313022214,1706637038551,-500.0,0.00020822,2]
[313022215,1706637038560,-500.0,0.00020822,2]
[313022216,1706637038570,-500.0,0.00020822,2]
[313022217,1706637038579,-500.0,0.00020822,2]
[313022218,1706637038588,-500.0,0.00020822,2]
[313022219,1706637038598,-500.0,0.00020822,2]
[313022220,1706637038607,-500.0,0.00020822,2]
[313022221,1706637038616,-500.0,0.00020822,2]
[313022222,1706637038626,-500.0,0.00020822,2]
[313022223,1706637038635,-500.0,0.00020822,2]
[313022224,1706637038644,-505.10204276,0.00020822,2]
[313022225,1706637038654,-400.0,0.00020822,2]
[313022226,1706637038663,-500.0,0.00020822,2]
[313022227,1706637038673,-500.0,0.00020822,2]
[313022228,1706637038682,-500.0,0.00020822,2]
[313022229,1706637038691,-500.0,0.00020822,2]
[313022230,1706637038701,-500.0,0.00020822,2]
[313022231,1706637038710,-500.0,0.00020822,2]
[313022232,1706637038719,-447.53970492,0.00020822,2]
[313022233,1706637038728,-200.0,0.00021538,7]
[313022234,1706637038738,-1121.81735224,0.0002163,2]
[313022235,1706637038748,-1294.9059591,0.00021884,2]
[313022236,1706637038757,-280.0,0.00023691,7]
[313022237,1706637038767,-498.66582765,0.0002496,5]
[313022238,1706637038777,-37244.41306159,0.00025742,2]
[313022239,1706637038786,-8490.88789744,0.00025742,2]
[313022240,1706637038795,-2547.26636923,0.00025742,2]
[313022241,1706637038804,-391.0,0.0002606,7]
[313022242,1706637038813,-329.86581438,0.00027969,2]
[313022243,1706637038822,-5000.0,0.00027973,5]
[313022244,1706637038831,-155.1610457,0.00028293,2]
[313022245,1706637038842,-200.0,0.00028667,15]
[313022246,1706637038852,-348.0,0.00028667,15]
[313022247,1706637038863,-978.95259375,0.00028798,2]
[313022248,1706637038873,-1485.05811791,0.00028826,2]
[313022249,1706637038882,-155.01085076,0.00028826,2]
[313022250,1706637038892,-155.00155002,0.00028826,2]
[313022251,1706637038901,-155.13836492,0.00028826,2]
[313022252,1706637038911,-309.9690031,0.00028826,2]
[313022253,1706637038920,-309.72125088,0.00028826,2]
[313022254,1706637038930,-242.39341789,0.00028826,2]
[313022255,1706637038940,-155.02170276,0.00028826,2]
[313022256,1706637038950,-155.11338698,0.00028826,2]
[313022257,1706637038959,-378.36867229,0.00028826,2]
[313022258,1706637038968,-155.16797242,0.00028826,2]
[313022259,1706637038978,-155.12462204,0.00028826,2]
[313022260,1706637038988,-262.12037239,0.00028826,2]
[313022261,1706637038997,-309.72125088,0.00028826,2]
[313022262,1706637039006,-230.4636117,0.00028826,2]
[313022263,1706637039016,-1856.25502519,0.00028826,2]
[313022264,1706637039025,-155.70723413,0.00028826,2]
[313022265,1706637039034,-303.54991062,0.00028826,2]
[313022266,1706637039043,-155.17453603,0.00028826,2]
[313022267,1706637039053,-309.94424177,0.00028827,2]
[313022268,1706637039062,-200.30997645,0.00028827,2]
[313022269,1706637039071,-5214.02314025,0.00028827,2]
[313022270,1706637039080,-1678.29515222,0.00028838,2]
[313022271,1706637039090,-527.20617205,0.00028838,2]
[313022272,1706637039099,-688.68606905,0.00028838,2]
[313022273,1706637039108,-19720.32843806,0.00028838,2]
[313022274,1706637039117,-156.27626814,0.00028838,2]
[313022275,1706637039127,-309.9690031,0.00028838,2]
[313022276,1706637039136,-77373.09121176,0.0002884,2]
[313022277,1706637039148,-33767.06947694,0.0002884,2]
[313022278,1706637039161,-11506.64251618,0.0002884,2]
[313022279,1706637039254,-1951.83365289,0.00029,2]
[313022280,1706637039265,-300.0,0.00029,2]
[313022281,1706637039276,-20770.26046798,0.00029118,2]
[313022282,1706637039285,-234.6232533,0.00029315,2]
[313022283,1706637039294,-199.5795051,0.00029315,2]
[313022284,1706637039303,-199.5795051,0.00029315,2]
[313022285,1706637039313,-155.1610457,0.00029527,2]
[313022286,1706637039322,-151.0,0.00029702,7]
[313022287,1706637039332,-155.23328726,0.0002971,3]
[313022288,1706637039342,-3340.9928411,0.0003,2]
[313022289,1706637039351,-244.61431091,0.0003,4]
[313022290,1706637039360,-2374.95091436,0.0003,2]
[313022291,1706637039369,-166.31773331,0.0003,10]
[313022292,1706637039378,-689.49476826,0.0003,4]
[313022293,1706637039387,-146423.90831105,0.0003,4]
[313022294,1706637039396,-650.24391054,0.0003,14]
[313022295,1706637039405,-308.81555806,0.0003,4]
[313022296,1706637039414,-910.12089925,0.0003,7]
[313022297,1706637039424,-237.0,0.0003,2]
[313022298,1706637039433,-723.596918,0.000301,11]
[313022299,1706637039442,-500.0,0.0003012,11]
[313022300,1706637039451,-500.0,0.0003014,11]
[313022301,1706637039460,-500.0,0.0003016,11]
[313022302,1706637039469,-500.0,0.0003018,11]
[313022303,1706637039479,-500.0,0.000302,11]
[313022304,1706637039488,-151.0,0.00030308,4]
[313022305,1706637039497,-1751.98385727,0.000304,5]
[313022306,1706637039507,-157.894736,0.00030591,2]
[313022307,1706637039516,-151.0,0.00030644,2]
[313022308,1706637039526,-151.0,0.00030927,2]
[313022309,1706637039534,-161.43393847,0.00031,4]
[313022310,1706637039543,-3800.45031241,0.00031,7]
[313022311,1706637039553,-1000.0,0.00031,31]
[313022312,1706637039563,-851.21683182,0.00031,7]
[313022313,1706637039572,-545.581274,0.00031,7]
[313022314,1706637039581,-181.9475978,0.00031,7]
[313022315,1706637039590,-1500.0,0.00031,2]
[313022316,1706637039599,-157.894736,0.00031209,2]
[313022317,1706637039609,-200.0,0.00031533,15]
[313022318,1706637039617,-200.0,0.00031533,15]
[313022319,1706637039626,-368.0,0.00031533,15]
[313022320,1706637039635,-151.725805,0.00031625,2]
[313022321,1706637039644,-151.725805,0.00031625,2]
[313022322,1706637039655,-191.898187,0.00031625,2]
[313022323,1706637039664,-151.569421,0.00031625,2]
[313022324,1706637039673,-157.894736,0.00031827,2]
[313022325,1706637039683,-9160.16469192,0.000319,3]
[313022326,1706637039692,-642.07048954,0.00031911,2]
[313022327,1706637039701,-2041.12977295,0.00031996,4]
[313022328,1706637039710,-155.24211157,0.00031996,4]
[313022329,1706637039719,-470.85118613,0.00031998,2]
[313022330,1706637039728,-283.99630205,0.00031998,4]
[313022331,1706637039737,-608.60642979,0.00031998,4]
[313022332,1706637039747,-1129.04995843,0.00031998,5]
[313022333,1706637039756,-500.0,0.00031998,4]
[313022334,1706637039765,-4818.41258945,0.00031998,4]
[313022335,1706637039775,-456.91148331,0.00031998,4]
[313022336,1706637039784,-1697.47554063,0.00031998,4]
[313022337,1706637039793,-21088.31570738,0.00031998,4]
[313022338,1706637039802,-155.01085076,0.00031998,4]
[313022339,1706637039811,-213.63828933,0.00031998,4]
[313022340,1706637039823,-262.41441764,0.00031998,4]
[313022341,1706637039832,-1268.12169078,0.00031998,4]
[313022342,1706637039842,-904.55199849,0.00031998,4]
[313022343,1706637039850,-1995.52315242,0.00031998,4]
[313022344,1706637039859,-588.5086678,0.00031998,4]
[313022345,1706637039868,-161.27818269,0.00031999,30]
[313022346,1706637039877,-81268.82977941,0.00031999,4]
[313022347,1706637039887,-10946.41559827,0.00032,15]
[313022348,1706637039897,-5373.40116118,0.00032,4]
[313022349,1706637039906,-127321.39866386,0.00032,15]
[313022350,1706637039915,-134723.19659285,0.00032,15]
[313022351,1706637039924,-38293.50759066,0.00032,3]
[313022352,1706637039933,-76108.76167601,0.00032,10]
[313022353,1706637039943,-1002.923882,0.00032,3]
[313022354,1706637039952,-1500.0,0.00032,4]
[313022355,1706637039961,-2001.2370584,0.00032,3]
[313022356,1706637039971,-1536.36145825,0.00032,2]
[313022357,1706637039980,-2009.46,0.00032,4]
[313022358,1706637039989,-67053.03607138,0.00032,15]
[313022374,1706637042486,-4074.15197877,0.00032,15]
[313022443,1706637046282,-268.87867758,0.00020509,2]
[313022444,1706637046293,-1772.25109537,0.00020509,2]
[313022447,1706637125567,2313.8,0.00020499,3]
[313022448,1706637131780,154.9690062,0.00020414,2]
[313022450,1706637137349,4039.41,0.00020499,3]
[313022451,1706637148901,3366.17,0.00020499,3]
[313022452,1706637159301,2805.14,0.00020499,3]
[313022453,1706637169746,2337.62,0.00020497,3]
[313022454,1706637181271,1948.02,0.00020497,3]
[313022456,1706637192919,1623.35,0.00020497,3]
[313022458,1706637204230,1352.79,0.00020497,3]
[313022459,1706637210539,155.00620025,0.00020497,2]
[313022460,1706637216064,1127.32,0.00020497,3]
[313022463,1706637226543,155.03100499,0.00020497,2]
[313022464,1706637227878,939.44,0.00020497,3]
[313022469,1706637239795,782.86,0.00020497,3]
[313022474,1706637251577,652.39,0.00020497,3]
[313022483,1706637264310,543.66,0.00020497,3]
[313022488,1706637275579,453.05,0.00020497,3]
[313022490,1706637278555,1586.35135048,0.000205,2]
[313022491,1706637278782,7970.65505241,0.000205,2]
[313022492,1706637285476,199.46539492,0.000205,2]
[313022493,1706637286999,522.79204852,0.000205,2]
[313022495,1706637287724,377.54,0.00020497,3]
[313022497,1706637296384,608.78469268,0.000205,2]
[313022498,1706637299606,314.61,0.00020497,3]
[313022501,1706637311123,262.18,0.00020497,3]
[313022504,1706637322519,218.48,0.00020497,3]
[313022506,1706637328787,20925.73501298,0.000205,2]
[313022507,1706637334434,182.07,0.00020497,3]
[313022508,1706637347245,151.72,0.00020497,3]
[313022511,1706637355100,1586.35135048,0.000205,2]
[313022512,1706637358567,758.65,0.00020497,3]
[313022513,1706637387232,150.16236315,0.00020406,2]
[313022518,1706637448596,155.00155002,0.000205,2]
[313022520,1706637456308,1268.60769879,0.000205,2]
[313022521,1706637519724,20899.05725792,0.000205,2]
[313022529,1706637581515,1586.35135048,0.000205,2]
[313022531,1706637596962,164.49137,0.00019233,2]
[313022533,1706637624067,24900.0,0.00019506,2]
[313022536,1706637634653,155.0,0.000205,2]
[313022544,1706637678032,199.46539492,0.000205,2]
[313022545,1706637678915,608.78469268,0.000205,2]
[313022549,1706637715679,343.44691055,0.000205,2]
[313022550,1706637720575,522.79204852,0.00020499,2]
[313022551,1706637720823,1268.60769879,0.00020499,2]
[313022552,1706637732668,155.0,0.000205,2]
[313022553,1706637739667,342.90703762,0.000205,2]
[313022555,1706637752606,155.0,0.00020499,2]
[313022556,1706637774598,202.24688571,0.00020499,2]
[313022575,1706637982915,167.11616127,0.00020401,2]
[313022585,1706638038587,978.95259375,0.00018451,2]
[313022594,1706638220383,20899.05725792,0.000205,2]
[313022628,1706638232345,-199.78854245,0.00020501,2]
[313022630,1706638232355,-274.03382253,0.00020501,2]
[313022632,1706638232364,-155.00930028,0.00020501,2]
[313022634,1706638232374,-199.2320676,0.00020501,2]
[313022636,1706638232384,-608.24990401,0.00020501,2]
[313022638,1706638232393,-1267.14967476,0.00020501,2]
[313022641,1706638232403,-522.06116088,0.00020501,2]
[313022644,1706638232413,-208.13455576,0.00020501,2]
[313022660,1706638232515,-639.21141232,0.00020502,2]
[313022663,1706638232525,-5406.11947604,0.00020503,2]
[313022667,1706638232543,-63983.58742619,0.00020503,2]
[313022752,1706638239234,-182.63179081,0.00020502,2]
[313022753,1706638239243,-7218.31120117,0.00020503,2]
[313022754,1706638239275,-4851.83305016,0.00020503,2]
[313022756,1706638239284,-2106.51819104,0.00020505,2]
[313022757,1706638239293,-10345.73317801,0.00020505,2]
[313022758,1706638239303,-5988.12517214,0.00020506,2]
[313022759,1706638239312,-470.85118613,0.00020507,2]
[313022760,1706638239321,-588.5086678,0.00020507,2]
[313022761,1706638239330,-262.41441764,0.00020507,2]
[313022762,1706638239339,-2041.12977295,0.00020507,2]
[313022763,1706638239349,-155.24211157,0.00020507,2]
[313022764,1706638239358,-904.55199849,0.00020507,2]
[313022765,1706638239367,-213.63828933,0.00020508,2]
[313022766,1706638239377,-500.0,0.00020508,2]
[313022767,1706638239386,-155.01085076,0.00020508,2]
[313022768,1706638239395,-283.99630205,0.00020508,2]
[313022769,1706638239404,-1129.04995843,0.00020508,5]
[313022770,1706638239414,-1995.52315242,0.00020508,2]
[313022771,1706638239423,-456.91148331,0.00020508,2]
[313022772,1706638239432,-1697.47554063,0.00020508,2]
[313022773,1706638239441,-4818.41258945,0.00020508,2]
[313022774,1706638239450,-222.58857346,0.00020509,2]
[313022775,1706638239459,-200069.62368931,0.00020509,2]
[313022776,1706638239469,-466.42760995,0.00020822,2]
[313022777,1706638239478,-445.01133808,0.00020822,2]
[313022778,1706638239488,-314.70220726,0.00020822,2]
[313022779,1706638239497,-600.0,0.00020822,2]
[313022780,1706638239507,-200.0,0.00021525,7]
[313022781,1706638239516,-3748.11679382,0.00021887,2]
[313022782,1706638239525,-280.0,0.00023677,7]
[313022783,1706638239534,-150.0,0.00025,2]
[313022784,1706638239542,-3027.44573445,0.00025223,2]
[313022785,1706638239552,-562.1560078,0.00025738,2]
[313022786,1706638239561,-155.0201515,0.00025738,2]
[313022787,1706638239573,-156.29721489,0.00025738,2]
[313022788,1706638239582,-679.47851073,0.00025738,2]
[313022789,1706638239600,-155.0201515,0.00025739,2]
[313022790,1706638239613,-36990.12614126,0.0002574,2]
[313022791,1706638239623,-3832.02934546,0.00026004,2]
[313022792,1706638239633,-12636.49728876,0.00026004,2]
[313022793,1706638239644,-3932.66772139,0.00026004,2]
[313022794,1706638239653,-391.0,0.00026045,7]
[313022795,1706638239663,-161.27818269,0.00028,2]
[313022796,1706638239672,-234.6232533,0.00028493,2]
[313022797,1706638239682,-200.0,0.0002865,15]
[313022798,1706638239692,-348.0,0.0002865,15]
[313022799,1706638239702,-1751.98385727,0.0002899,4]
[313022800,1706638239711,-300.0,0.00029,2]
[313022801,1706638239720,-1951.83365289,0.00029,2]
[313022802,1706638239730,-20770.26046798,0.00029105,2]
[313022803,1706638239740,-261.29004679,0.00029314,2]
[313022804,1706638239749,-167.11701328,0.00029314,2]
[313022805,1706638239759,-199.5795051,0.00029315,2]
[313022806,1706638239769,-199.5795051,0.00029315,2]
[313022807,1706638239779,-199.5795051,0.00029315,2]
[313022808,1706638239788,-155.16104569,0.00029635,2]
[313022809,1706638239798,-151.0,0.00029665,7]
[313022810,1706638239807,-262.80883366,0.0002971,3]
[313022811,1706638239817,-150.0,0.000298,2]
[313022812,1706638239826,-400.0,0.000298,14]
[313022813,1706638239836,-284.15757875,0.000299,2]
[313022814,1706638239846,-244.61431091,0.0003,4]
[313022815,1706638239855,-3340.9928411,0.0003,2]
[313022816,1706638239865,-2374.95091436,0.0003,2]
[313022817,1706638239874,-146423.90831105,0.0003,4]
[313022818,1706638239884,-689.49476826,0.0003,4]
[313022819,1706638239893,-650.24391054,0.0003,14]
[313022820,1706638239902,-308.81555806,0.0003,4]
[313022821,1706638239912,-166.31773331,0.0003,10]
[313022822,1706638239921,-154.90705577,0.0003,2]
[313022823,1706638239931,-792.53773472,0.0003,15]
[313022824,1706638239940,-910.12089925,0.0003,7]
[313022825,1706638239950,-237.0,0.0003,2]
[313022826,1706638239959,-723.596918,0.000301,11]
[313022827,1706638239969,-500.0,0.0003012,11]
[313022828,1706638239979,-157.894736,0.00030137,2]
[313022829,1706638239989,-500.0,0.0003014,11]
[313022830,1706638239999,-500.0,0.0003016,11]
[313022831,1706638240008,-500.0,0.0003018,11]
[313022832,1706638240018,-500.0,0.000302,11]
[313022833,1706638240029,-151.0,0.00030271,4]
[313022834,1706638240038,-4742.44366424,0.000305,2]
[313022835,1706638240048,-157.894736,0.00030746,2]